bitfinex/quotes_ETHUSD_20240922
["timestamp","ask_amount","ask_price","bid_price","bid_amount"]
[1727043583231,0.0376564,2545.7,2545.6,7.47834]
[1727043583738,0.0376564,2545.7,2545.6,6.92834]
[1727043584034,0.14995749,2545.7,2545.6,6.92834]
[1727043584237,0.0376564,2545.7,2545.6,8.0925932]
[1727043584438,0.14990005,2545.7,2545.6,8.0925932]
[1727043584725,0.0376564,2545.7,2545.6,8.0925932]
[1727043585236,0.0376564,2545.7,2545.6,8.6425932]
[1727043587464,0.0376564,2545.7,2545.6,11.0577932]
[1727043588040,0.0376564,2546.5,2546.4,7.47711]
[1727043588255,0.0376564,2546.5,2546.4,11.46493833]
[1727043588480,0.0376564,2546.5,2546.4,8.224821]
[1727043589073,0.0376564,2546.5,2546.4,6.92711]
[1727043589074,2.4733564,2546.5,2546.4,6.92711]
[1727043589496,2.58688908,2546.5,2546.4,6.92711]
[1727043589707,2.58688908,2546.5,2546.4,3.0]
[1727043591994,2.58688908,2546.5,2546.4,6.92711]
[1727043592351,2.4733564,2546.5,2546.4,3.0]
[1727043592666,2.58658292,2546.5,2546.2,6.92741]
[1727043593389,6.51356292,2546.5,2545.9,3.92784]
[1727043593589,6.51356292,2546.5,2546.0,3.0]
[1727043593590,3.92714,2546.4,2546.0,3.0]
[1727043593889,3.92727,2546.3,2546.0,3.0]
[1727043594089,0.11320738,2546.3,2546.0,3.0]
[1727043595795,2.4357,2545.9,2545.4,3.92855]
[1727043596017,0.11320738,2546.3,2544.4,2.4152]
[1727043596018,2.4357,2545.4,2544.4,2.4152]
[1727043596302,2.4357,2545.4,2544.6,3.92977]
[1727043596303,3.92906,2545.2,2544.6,3.92977]
[1727043596502,6.36445,2545.4,2544.6,3.92977]
[1727043596717,0.11292025,2545.1,2544.7,3.92964]
[1727043596862,3.92889,2545.3,2544.7,4.739733]
[1727043597198,6.36445,2545.4,2544.8,3.92954]
[1727043597400,0.11221794,2545.2,2544.9,3.92932]
[1727043597712,2.4357,2545.4,2544.9,3.92932]
[1727043597996,2.4357,2545.4,2544.9,7.85866]
[1727043598159,0.11217322,2545.3,2544.9,1.1668753]
[1727043598360,0.11217322,2545.3,2544.7,6.92963]
[1727043598361,2.4357,2545.1,2544.7,6.92963]
[1727043598599,2.4357,2545.1,2544.5,0.24152]
[1727043598897,0.11217322,2545.0,2544.5,3.92996]
[1727043599099,0.11217322,2545.0,2544.7,3.92972]
[1727043599497,0.11217322,2545.0,2544.8,3.92949]
[1727043599679,0.11217322,2545.0,2544.9,3.92942]
[1727043600164,0.11217322,2545.0,2544.8,3.92956]
[1727043600365,0.11217322,2545.0,2544.9,3.92942]
[1727043600647,0.11217322,2545.0,2544.9,6.92942]
[1727043600973,2.4357,2545.4,2544.8,0.785937]
[1727043601185,3.92896,2545.2,2544.7,3.0]
[1727043601380,0.11133049,2545.3,2544.8,3.92944]
[1727043601700,0.11133049,2545.3,2545.0,3.92917]
[1727043601904,0.11133049,2545.3,2545.2,3.92896]
[1727043602202,0.11133049,2545.3,2545.2,7.47896]
[1727043602368,0.11133049,2545.3,2545.2,8.864006]
[1727043602570,2.2793,2545.7,2545.6,3.92834]
[1727043602790,0.11133049,2545.7,2545.6,6.92834]
[1727043603299,2.2793,2546.0,2545.5,3.0]
[1727043603716,0.11133049,2545.9,2545.5,3.0]
[1727043604004,0.11133049,2545.9,2545.6,3.92832]
[1727043604619,0.11133049,2545.9,2545.8,3.92803]
[1727043604819,0.11133049,2545.9,2545.7,3.92808]
[1727043605126,4.03927049,2545.9,2545.4,3.0]
[1727043605493,3.92813,2545.8,2545.2,8.313986]
[1727043605694,3.92794,2545.9,2545.4,3.0]
[1727043606015,0.11133049,2545.8,2545.6,3.92833]
[1727043606339,2.2793,2546.0,2545.6,3.92833]
[1727043606518,2.2793,2546.0,2545.6,3.92824]
[1727043606688,0.11133049,2545.9,2545.6,3.92824]
[1727043606894,0.11133049,2545.9,2545.8,3.92803]
[1727043607837,0.11133049,2545.9,2545.7,3.92819]
[1727043608241,0.11133049,2545.9,2545.8,3.92803]
[1727043608454,0.11133049,2545.9,2545.7,3.92808]
[1727043608632,0.11133049,2545.9,2545.7,7.85617]
[1727043608944,0.11133049,2545.9,2545.7,8.7110694]
[1727043609233,0.11133049,2545.9,2545.7,4.7829794]
[1727043609428,0.11133049,2545.9,2545.6,3.0]
[1727043609643,0.11133049,2545.9,2545.5,3.92838]
[1727043610501,3.92812,2545.8,2545.4,3.0]
[1727043610806,0.11133049,2545.9,2544.9,3.92933]
[1727043610807,7.85724,2545.5,2544.9,3.92933]
[1727043610994,7.96827813,2545.7,2545.1,3.92909]
[1727043611201,2.2793,2545.6,2545.1,3.92909]
[1727043611436,2.39098813,2545.6,2545.1,7.85818]
[1727043611752,2.39098813,2545.6,2544.6,6.37225]
[1727043611753,2.2793,2545.2,2544.7,3.92965]
[1727043611931,2.2793,2545.2,2544.8,3.92952]
[1727043612106,0.11191166,2545.1,2544.8,3.92952]
[1727043612551,0.11191166,2545.1,2545.0,3.92927]
[1727043613428,0.11191166,2545.1,2544.8,4.715437]
[1727043613630,0.11191166,2545.1,2544.6,3.92978]
[1727043614015,0.11191166,2545.1,2544.8,3.92956]
[1727043614218,0.11191166,2545.1,2544.8,7.85897]
[1727043614403,0.11191166,2545.1,2544.8,3.92948]
[1727043615047,0.11191166,2545.1,2544.4,6.9301]
[1727043615248,3.92927,2545.0,2544.4,7.62306]
[1727043615419,6.20912,2544.7,2544.1,3.93053]
[1727043615747,3.92967,2544.8,2543.4,0.0376564]
[1727043615748,3.93044,2544.3,2543.4,0.0376564]
[1727043615909,2.39121166,2544.2,2543.7,3.93114]
[1727043616107,2.39121166,2544.2,2544.0,3.93079]
[1727043616639,2.39121166,2544.2,2544.1,3.93066]
[1727043616950,0.11191166,2544.2,2544.1,4.72465644]
[1727043617265,2.3191,2544.8,2544.7,3.92973]
[1727043617612,2.4301748,2544.8,2544.7,3.92973]
[1727043617852,2.3191,2544.8,2544.6,3.92987]
[1727043618163,2.4301748,2544.8,2544.6,3.92987]
[1727043618744,2.4301748,2544.8,2544.6,7.85968]
[1727043619057,2.4301748,2544.8,2544.6,3.92981]
[1727043619255,0.1110748,2544.8,2544.7,3.92973]
[1727043619464,0.1110748,2544.8,2544.7,7.00831635]
[1727043619670,2.3191,2545.4,2545.0,3.92916]
[1727043620176,0.11134959,2545.3,2544.9,3.92935]
[1727043620329,0.11134959,2545.3,2544.9,4.622285]
[1727043620535,0.11134959,2545.3,2545.1,3.9291]
[1727043620734,0.11134959,2545.3,2545.0,3.92927]
[1727043622233,0.11134959,2545.3,2544.9,4.622335]
[1727043622770,3.92898,2545.2,2544.8,3.0]
[1727043623074,2.3191,2544.8,2544.4,3.93019]
[1727043623275,6.24868,2544.8,2544.3,3.93024]
[1727043623438,0.11129216,2544.7,2544.4,0.393024]
[1727043623779,2.3191,2544.8,2544.4,0.393024]
[1727043623987,2.3191,2544.8,2544.0,2.4036]
[1727043623988,4.04112216,2544.7,2544.0,2.4036]
[1727043624189,2.3191,2544.3,2543.6,2.4036]
[1727043624476,2.3191,2544.3,2544.1,3.93064]
[1727043624830,0.11104299,2544.2,2544.1,3.93064]
[1727043625274,2.3191,2544.3,2544.1,3.93064]
[1727043625483,2.3191,2544.3,2544.1,4.716792]
[1727043625484,0.11104299,2544.2,2544.1,4.716792]
[1727043625832,2.3191,2544.6,2544.4,3.93016]
[1727043626058,2.3191,2544.6,2544.4,7.86023]
[1727043626397,0.11074899,2544.5,2544.4,3.93011]
[1727043629781,0.11074899,2544.5,2544.3,6.9303]
[1727043630349,0.11074899,2544.5,2544.4,3.93019]
[1727043631158,3.92929,2545.0,2544.4,3.93019]
[1727043631369,0.11074899,2544.9,2544.4,3.93019]
[1727043632067,0.15943642,2544.9,2544.4,3.93019]
[1727043632347,0.15943642,2544.9,2544.7,3.92963]
[1727043632549,2.3191,2545.1,2544.8,3.92947]
[1727043632750,3.9282,2545.7,2544.8,3.92947]
[1727043632751,2.3458,2545.5,2545.2,3.92895]
[1727043633989,2.3458,2545.5,2545.0,7.85831]
[1727043634164,2.3458,2545.5,2545.0,3.92912]
[1727043634784,6.27431,2545.5,2545.0,3.92912]
[1727043634957,2.3458,2545.5,2545.2,3.92888]
[1727043635354,2.3458,2545.5,2545.1,3.92901]
[1727043635592,0.15943642,2545.4,2545.1,7.85804]
[1727043635798,0.15943642,2545.4,2545.1,3.92901]
[1727043637873,0.15943642,2545.4,2545.0,0.618242]
[1727043638106,0.15943642,2545.4,2545.0,4.547432]
[1727043638598,2.3458,2545.0,2544.6,3.0]
[1727043638759,0.15942365,2544.9,2544.7,3.0]
[1727043639915,0.15942365,2544.9,2544.5,3.0]
[1727043640062,0.15942365,2544.9,2544.2,3.9304]
[1727043640063,7.85958,2544.7,2544.2,3.9304]
[1727043640265,3.92976,2544.7,2544.2,3.9304]
[1727043640612,3.92976,2544.7,2544.2,7.86079]
[1727043640613,0.15942365,2544.6,2544.2,7.86079]
[1727043640820,0.15942365,2544.6,2544.2,4.716469]
[1727043641461,0.15942365,2544.6,2544.2,3.93039]
[1727043641663,3.93006,2544.5,2544.0,10.86145]
[1727043641901,3.93006,2544.5,2544.0,6.93072]
[1727043642088,0.15963458,2544.4,2544.0,6.93072]
[1727043642489,2.3458,2544.3,2544.0,10.86146]
[1727043642688,2.3458,2544.3,2544.0,8.016866]
[1727043643071,0.15963458,2544.2,2544.0,8.016866]
[1727043643264,0.15963458,2544.2,2543.4,3.9693264]
[1727043643506,2.3458,2544.3,2543.4,0.0376564]
[1727043643507,2.3458,2543.7,2543.4,0.0376564]
[1727043643667,6.27715,2543.7,2543.4,0.0376564]
[1727043643865,4.09103314,2543.6,2543.4,0.0376564]
[1727043644066,3.93159,2543.5,2543.4,0.0376564]
[1727043644481,4.09108397,2543.5,2543.4,0.0376564]
[1727043645316,6.43688397,2543.5,2543.4,0.0376564]
[1727043645845,3.93242,2543.0,2542.6,0.0376564]
[1727043646121,3.93282,2542.8,2542.6,0.0376564]
[1727043646449,0.15730727,2542.7,2542.6,0.0376564]
[1727043646928,2.3458,2542.9,2542.6,0.0376564]
[1727043647076,0.15714091,2542.7,2542.6,0.0376564]
[1727043647281,2.3458,2542.9,2542.6,3.9706364]
[1727043647479,0.15713451,2542.7,2542.6,3.9706364]
[1727043647681,2.3458,2542.9,2542.6,3.9706364]
[1727043647947,0.15692331,2542.7,2542.6,3.9706364]
[1727043648086,2.3458,2542.9,2542.6,0.0376564]
[1727043648614,0.15694251,2542.8,2542.6,0.0376564]
[1727043649206,0.15694251,2542.8,2542.7,3.93282]
[1727043649547,3.93151,2543.6,2542.9,3.0]
[1727043649548,2.4415,2543.3,2542.9,3.0]
[1727043649817,2.4415,2543.3,2542.9,6.93242]
[1727043650194,2.4415,2543.3,2543.0,3.93233]
[1727043650400,2.4415,2543.6,2543.0,0.07864808]
[1727043650609,0.15714091,2543.5,2543.2,3.93204]
[1727043650814,0.15714091,2543.5,2543.3,3.93189]
[1727043651084,2.4415,2543.9,2543.4,3.93172]
[1727043651490,6.37248,2543.9,2543.4,3.93172]
[1727043651792,3.93118,2543.8,2543.1,3.93205]
[1727043651992,2.4415,2543.9,2543.3,3.93181]
[1727043652206,3.93116,2543.8,2543.3,3.93181]
[1727043652405,3.93116,2543.8,2543.2,3.0]
[1727043652596,3.93116,2543.8,2543.2,6.932]
[1727043652805,3.93116,2543.8,2543.3,3.93189]
[1727043653498,10.30366,2543.9,2543.3,3.93181]
[1727043653738,3.93122,2543.8,2543.3,3.93181]
[1727043654220,3.93145,2543.6,2543.2,3.0]
[1727043654998,2.4415,2543.5,2542.9,7.86486]
[1727043655247,2.4415,2543.5,2542.9,3.93243]
[1727043655529,2.4415,2543.5,2542.6,2.3062564]
[1727043655744,3.93229,2543.1,2542.6,0.0376564]
[1727043655885,2.4415,2543.0,2542.6,0.0376564]
[1727043656990,3.93253,2542.9,2542.6,0.0376564]
[1727043658090,3.93277,2542.8,2542.6,0.0376564]
[1727043659734,3.93282,2542.7,2542.6,0.0376564]
[1727043660238,3.93253,2542.9,2542.6,0.0376564]
[1727043660598,6.37432,2542.7,2542.6,0.0376564]
[1727043661335,0.7907716,2543.6,2542.6,0.0376564]
[1727043661495,3.93214,2543.2,2542.6,7.9034064]
[1727043661695,6.37372,2543.1,2542.6,0.0376564]
[1727043661932,2.4415,2543.1,2542.8,3.93259]
[1727043662096,2.4415,2543.1,2542.8,7.86513]
[1727043662302,2.4415,2543.1,2542.6,3.9705564]
[1727043662632,2.4415,2543.1,2542.6,0.0376564]
[1727043662633,3.93256,2542.9,2542.6,0.0376564]
[1727043662946,10.30616,2543.1,2542.6,0.0376564]
[1727043663232,3.93241,2543.0,2542.6,0.0376564]
[1727043663441,4.08985002,2542.9,2542.6,0.0376564]
[1727043664321,0.15732002,2542.9,2542.6,0.0376564]
[1727043664654,2.4415,2543.1,2542.7,3.93279]
[1727043664934,0.15732002,2542.8,2542.7,3.93279]
[1727043665143,2.4415,2543.1,2542.7,3.93279]
[1727043665340,0.15732002,2542.8,2542.7,3.93279]
[1727043665515,2.4415,2543.1,2542.8,3.93265]
[1727043666319,2.4415,2543.1,2542.6,3.9705464]
[1727043666807,2.4415,2543.1,2542.6,7.9034264]
[1727043667208,2.4415,2543.1,2542.6,3.9705364]
[1727043667405,2.3341,2543.4,2542.6,1.05597804]
[1727043667612,2.3341,2543.4,2542.9,3.9325]
[1727043667841,2.3341,2543.4,2543.0,3.93235]
[1727043668007,2.3341,2543.4,2542.7,3.93276]
[1727043668412,3.93128,2543.7,2542.7,3.93276]
[1727043668413,2.3341,2543.7,2543.2,3.93193]
[1727043668561,2.3341,2543.7,2543.4,3.93172]
[1727043668726,2.3341,2543.7,2543.3,3.93189]
[1727043669066,2.3341,2543.7,2543.3,7.86364]
[1727043669219,2.3341,2543.7,2543.3,3.93175]
[1727043670322,2.3341,2543.7,2543.4,3.93174]
[1727043670574,3.42184408,2544.3,2543.5,2.2795]
[1727043670741,2.3341,2544.3,2543.9,3.93087]
[1727043670937,2.3341,2544.5,2543.9,3.93087]
[1727043671139,2.3341,2544.5,2543.8,3.0]
[1727043671617,7.16942733,2545.0,2543.5,2.2795]
[1727043671618,2.3341,2544.1,2543.6,3.0]
[1727043671821,2.3341,2544.1,2543.7,3.93126]
[1727043672135,2.3341,2544.1,2543.8,3.93105]
[1727043672341,2.3341,2544.1,2543.7,3.93126]
[1727043672737,3.93099,2543.9,2543.4,3.0]
[1727043672965,3.93144,2543.6,2543.1,3.93209]
[1727043673170,2.3341,2543.5,2543.1,3.93209]
[1727043673840,6.26471,2544.2,2543.6,3.9314]
[1727043674483,6.26471,2544.2,2543.6,3.93134]
[1727043674691,6.26471,2544.2,2543.7,3.93125]
[1727043675284,10.1953,2544.2,2543.6,3.93134]
[1727043675444,6.26469,2544.2,2543.6,7.86268]
[1727043675648,10.19529,2544.2,2543.6,3.93134]
[1727043676146,3.93067,2544.1,2543.6,3.93134]
[1727043676977,2.3341,2544.2,2543.3,6.93182]
[1727043677188,3.24011733,2544.4,2543.3,6.93182]
[1727043677189,3.93112,2543.9,2543.3,6.93182]
[1727043677344,6.26531,2543.8,2543.3,3.93182]
[1727043677543,3.93129,2543.7,2543.2,3.93201]
[1727043677788,3.93129,2543.7,2543.1,3.93212]
[1727043677951,7.86332,2543.5,2542.9,6.21186]
[1727043678155,7.86281,2543.7,2542.9,3.93236]
[1727043678356,7.86281,2543.7,2543.1,3.93219]
[1727043679057,3.93143,2543.6,2543.1,3.93219]
[1727043679987,3.93154,2543.6,2543.0,3.93235]
[1727043680149,6.26579,2543.5,2543.0,3.93235]
[1727043680572,0.15230101,2543.4,2543.1,3.9321]
[1727043680880,0.15230101,2543.4,2543.1,7.86421]
[1727043681178,0.15230101,2543.4,2543.1,3.9321]
[1727043681387,0.15230101,2543.4,2543.2,3.93203]
[1727043681869,0.15230101,2543.4,2543.1,3.9321]
[1727043683349,0.15230101,2543.4,2542.9,3.93239]
[1727043683549,4.08405101,2543.4,2542.9,7.86481]
[1727043683854,4.08405101,2543.4,2542.7,5.2795]
[1727043683855,0.15230101,2543.4,2542.8,3.0]
[1727043684085,0.15230101,2543.4,2543.2,3.93196]
[1727043684388,0.15230101,2543.4,2543.3,3.93189]
[1727043684754,3.9314,2543.7,2543.2,3.93204]
[1727043684972,2.3341,2543.8,2543.2,3.93197]
[1727043684973,0.15216621,2543.6,2543.2,3.93197]
[1727043685185,6.26487,2544.1,2543.5,3.93159]
[1727043685392,0.15216621,2544.0,2543.6,3.9314]
[1727043685608,0.15216621,2544.0,2543.9,3.93097]
[1727043685748,2.3341,2544.4,2543.8,3.93104]
[1727043685749,2.3341,2544.4,2544.0,3.93081]
[1727043686194,0.15216621,2544.3,2544.0,3.93081]
[1727043686358,0.15216621,2544.3,2544.1,3.93063]
[1727043686565,0.15216621,2544.3,2544.2,3.9305]
[1727043686763,0.15216621,2544.3,2544.2,4.716613]
[1727043686961,0.15216621,2544.3,2544.2,10.07472285]
[1727043687290,3.1248716,2545.1,2544.4,3.0]
[1727043687291,3.92944,2544.9,2544.4,3.0]
[1727043687663,6.41594621,2544.8,2544.2,3.0]
[1727043687873,6.41594621,2544.8,2544.2,6.9304]
[1727043688296,6.41594621,2544.8,2544.3,3.93034]
[1727043688593,6.41594621,2544.8,2544.1,3.93052]
[1727043688594,3.92977,2544.7,2544.1,3.93065]
[1727043688978,0.15216621,2544.6,2544.1,3.93065]
[1727043689494,0.15216621,2544.6,2544.1,7.86122]
[1727043689794,0.15216621,2544.6,2544.1,3.93057]
[1727043690177,0.15216621,2544.6,2544.3,3.93033]
[1727043690376,0.15216621,2544.6,2544.3,7.86059]
[1727043690566,2.3341,2544.8,2544.3,7.86059]
[1727043690764,0.15216621,2544.5,2544.4,3.93019]
[1727043690974,2.3341,2544.8,2544.4,3.93019]
[1727043691375,2.3341,2544.8,2544.3,3.93026]
[1727043691593,2.3341,2544.8,2544.1,4.551567]
[1727043691594,0.15216621,2544.7,2543.9,6.21039]
[1727043691756,0.15216621,2544.7,2544.0,3.0]
[1727043692458,3.93005,2544.5,2544.0,3.0]
[1727043692894,0.15300661,2544.4,2544.0,3.0]
[1727043693266,0.15300661,2544.4,2544.1,3.93065]
[1727043693599,2.3341,2544.8,2544.3,3.93035]
[1727043693954,2.3341,2544.8,2544.3,7.8607]
[1727043694302,2.3341,2544.8,2544.4,3.93019]
[1727043695113,2.3341,2544.8,2544.1,3.93055]
[1727043695291,6.2637,2544.8,2544.3,3.93034]
[1727043695775,6.19905,2544.5,2543.8,3.0]
[1727043695959,3.9302,2544.4,2544.0,3.0]
[1727043696296,4.08407909,2544.4,2544.0,3.0]
[1727043696506,4.08407909,2544.4,2543.9,3.93087]
[1727043696671,0.15387909,2544.4,2543.9,7.86176]
[1727043696860,0.15387909,2544.4,2544.1,3.93055]
[1727043697060,2.2689,2544.8,2544.4,3.93013]
[1727043697317,0.15371237,2544.7,2544.4,3.93013]
[1727043697813,2.2689,2544.8,2544.4,3.93013]
[1727043698161,0.15371237,2544.7,2544.2,3.93035]
[1727043698373,0.15371237,2544.7,2544.3,3.93026]
[1727043698914,0.15371237,2544.6,2544.4,3.93019]
[1727043699121,0.15371237,2544.6,2544.5,3.93004]
[1727043699417,6.19812,2545.1,2544.6,3.92987]
[1727043700096,6.19809,2545.1,2544.5,3.93001]
[1727043700421,6.19809,2545.1,2544.6,3.92988]
[1727043700885,6.19809,2545.1,2544.6,3.92981]
[1727043701071,6.19755,2545.4,2544.6,4.033219]
[1727043701273,6.19755,2545.4,2544.8,3.92957]
[1727043701585,2.2689,2545.4,2544.9,3.92942]
[1727043701985,2.2689,2545.4,2545.1,3.92911]
[1727043702194,0.0376564,2545.7,2545.3,3.92878]
[1727043702195,2.3065564,2545.7,2545.3,3.92878]
[1727043702393,2.3065564,2545.7,2545.5,3.92848]
[1727043702626,3.92834,2545.6,2545.0,2.4723]
[1727043702827,2.3065564,2545.7,2545.0,3.0]
[1727043702995,3.92881,2545.3,2544.9,3.0]
[1727043703196,2.2689,2545.4,2544.9,3.0]
[1727043703784,2.2689,2545.4,2544.9,6.92938]
[1727043704525,2.2689,2545.4,2545.0,3.92923]
[1727043704686,2.2689,2545.4,2544.9,3.0]
[1727043704893,2.2689,2545.4,2545.1,3.92911]
[1727043705730,2.2689,2545.4,2545.0,6.92926]
[1727043706533,6.2348364,2545.7,2545.2,3.92888]
[1727043706829,6.2348364,2545.7,2545.0,6.92917]
[1727043706830,3.92835,2545.6,2545.1,3.92911]
[1727043706996,6.2348364,2545.7,2545.2,7.85769]
[1727043707198,6.2348364,2545.7,2545.2,3.92881]
[1727043707413,6.2348364,2545.7,2545.1,3.92907]
[1727043708393,3.92837,2545.6,2545.1,3.92907]
[1727043709524,6.2347464,2545.7,2545.2,7.85783]
[1727043709722,2.3065564,2545.7,2545.2,3.92888]
[1727043709931,2.3065564,2545.7,2545.4,3.92863]
[1727043710716,0.15371237,2545.6,2545.5,3.9285]
[1727043710933,0.15371237,2545.6,2545.5,4.714213]
[1727043711116,0.15371237,2545.6,2545.5,0.785713]
[1727043711301,0.15371237,2545.6,2545.4,3.0]
[1727043711631,0.15371237,2545.6,2545.3,3.0]
[1727043711926,0.15371237,2545.6,2545.5,3.9285]
[1727043712137,0.15371237,2545.6,2545.5,9.94476401]
[1727043712346,0.15371237,2545.6,2545.5,9.8662]
[1727043712629,0.0376564,2545.7,2545.6,7.47834]
[1727043712930,0.0376564,2545.7,2545.6,6.92834]
[1727043714021,0.19307999,2545.7,2545.6,6.92834]
[1727043714222,0.0376564,2545.7,2545.6,6.92834]
[1727043715041,0.19307999,2545.7,2545.6,6.92834]
[1727043715222,0.0376564,2545.7,2545.6,8.3907423]
[1727043715391,0.19307999,2545.7,2545.6,8.3907423]
[1727043715588,0.0376564,2545.7,2545.6,4.4624023]
[1727043715898,0.0376564,2545.7,2545.5,3.92841]
[1727043716123,0.19307999,2545.7,2545.6,3.92834]
[1727043716300,0.19307999,2545.7,2545.6,6.31604]
[1727043716924,0.19307999,2545.7,2545.6,9.31604]
[1727043717442,0.0376564,2545.7,2545.6,9.31604]
[1727043717605,0.0376564,2545.7,2545.6,10.640485]
[1727043718247,0.0376564,2545.7,2545.6,11.190485]
[1727043719443,0.0376564,2545.7,2545.6,10.640485]
[1727043719617,0.0376564,2545.7,2545.6,8.252785]
[1727043720347,0.19307999,2545.7,2545.6,3.0]
[1727043720506,0.0376564,2545.7,2545.6,6.92834]
[1727043720707,0.19307999,2545.7,2545.6,6.92834]
[1727043721045,0.0376564,2545.7,2545.6,6.92834]
[1727043721246,0.0376564,2545.7,2545.5,6.92849]
[1727043721538,0.0376564,2545.7,2545.6,6.92834]
[1727043721916,0.0376564,2545.7,2545.6,9.97044]
[1727043724307,0.0376564,2545.7,2545.6,10.45987078]
[1727043724512,0.0376564,2546.5,2546.4,9.41921]
[1727043725309,0.0376564,2546.5,2546.4,9.96921]
[1727043725507,0.0376564,2546.5,2546.4,11.358855]
[1727043727015,0.0376564,2546.5,2546.4,10.808855]
[1727043727221,0.0376564,2546.5,2546.1,2.4921]
[1727043727457,0.0376564,2546.5,2546.0,3.92768]
[1727043727652,0.1565186,2546.4,2546.1,3.92743]
[1727043727862,0.1565186,2546.4,2546.3,3.92726]
[1727043728218,0.1565186,2546.4,2546.1,3.92743]
[1727043728514,0.1565186,2546.4,2546.1,4.712952]
[1727043729056,0.1565186,2546.4,2546.0,3.92763]
[1727043729262,0.1565186,2546.4,2545.9,6.92778]
[1727043729422,0.1565186,2546.4,2546.0,3.0]
[1727043729619,0.1565186,2546.4,2546.3,3.92726]
[1727043729919,0.1565186,2546.4,2546.3,9.41936]
[1727043730254,0.0376564,2546.5,2546.4,6.92711]
[1727043730415,0.0376564,2546.5,2546.4,7.00563955]
[1727043730616,0.19391898,2546.5,2546.4,7.00563982]
[1727043730863,0.0376564,2546.5,2546.4,7.00563982]
[1727043731064,0.19391898,2546.5,2546.4,6.92711]
[1727043731221,0.19391898,2546.5,2546.4,9.37115117]
[1727043731422,0.0376564,2546.5,2546.4,9.37115117]
[1727043733153,0.0376564,2546.5,2546.4,11.86325117]
[1727043734935,0.0376564,2546.5,2546.4,15.1033685]
[1727043739961,0.0376564,2546.5,2546.4,2.4921]
[1727043740165,0.0376564,2546.5,2545.8,7.16811733]
[1727043740351,0.19509665,2546.5,2546.4,3.92711]
[1727043740552,0.0376564,2546.5,2546.1,3.92749]
[1727043740798,8.04921665,2546.5,2545.9,3.92777]
[1727043741097,8.04921665,2546.5,2545.9,0.78558]
[1727043741098,0.19509665,2546.5,2545.9,0.78558]
[1727043741250,0.19509665,2546.5,2546.0,2.3417]
[1727043741451,0.19509665,2546.5,2546.4,3.92711]
[1727043741684,0.19509665,2546.5,2546.4,6.26881]
[1727043741954,0.0376564,2546.5,2546.4,9.81881]
[1727043744151,0.0376564,2546.5,2546.4,13.05892733]
[1727043744497,0.0376564,2546.5,2546.4,14.75754406]
[1727043746552,0.0376564,2546.5,2546.4,11.51742673]
[1727043746859,0.19517342,2546.5,2546.4,11.51742673]
[1727043747059,0.0376564,2546.5,2546.4,11.51742673]
[1727043748113,0.0376564,2546.5,2546.4,14.75754406]
[1727043751876,0.0376564,2547.3,2547.2,9.96387]
[1727043752076,0.0376564,2547.3,2547.2,11.352858]
[1727043752516,0.0376564,2547.3,2547.2,8.864858]
[1727043752813,0.19517342,2547.3,2547.2,8.864858]
[1727043752997,0.0376564,2547.3,2547.2,8.864858]
[1727043753196,0.19517342,2547.3,2547.2,8.864858]
[1727043753413,0.0376564,2547.3,2547.2,8.864858]
[1727043753619,0.19559557,2547.3,2547.2,8.864858]
[1727043753818,0.0376564,2547.3,2547.2,8.864858]
[1727043753981,0.19559557,2547.3,2547.2,8.864858]
[1727043754180,0.0376564,2547.3,2547.2,8.864858]
[1727043754381,0.19559557,2547.3,2547.2,8.864858]
[1727043754605,0.0376564,2547.3,2547.2,8.864858]
[1727043754864,0.19559557,2547.3,2547.2,8.864858]
[1727043756841,0.0376564,2547.3,2547.2,8.864858]
[1727043760315,0.0376564,2547.3,2547.2,12.10497533]
[1727043761802,0.0376564,2547.3,2547.2,8.864858]
[1727043763253,0.0376564,2547.3,2547.2,5.314858]
[1727043763254,0.19595374,2547.3,2547.2,5.314858]
[1727043763562,0.19595374,2547.3,2547.2,3.92587]
[1727043764648,0.19595374,2547.3,2547.2,6.92587]
[1727043765051,0.0376564,2547.3,2547.2,6.92587]
[1727043765409,0.19592816,2547.3,2547.2,6.92587]
[1727043767493,0.19592816,2547.3,2547.2,3.0]
[1727043767761,0.19592816,2547.3,2547.2,6.92587]
[1727043768604,0.19592816,2547.3,2547.2,8.561052]
[1727043768923,0.0376564,2547.3,2547.2,8.561052]
[1727043769538,0.0376564,2547.3,2547.2,11.80116933]
[1727043769821,0.0376564,2547.3,2547.2,14.10426933]
[1727043770327,0.0376564,2547.3,2547.2,13.4913096]
[1727043772526,0.0376564,2547.3,2547.2,10.864152]
[1727043775061,0.0376564,2547.3,2547.2,5.011052]
[1727043775266,0.0376564,2547.3,2547.2,3.92587]
[1727043775590,0.19062501,2547.3,2547.2,6.22897]
[1727043775753,0.0376564,2547.3,2547.2,6.22897]
[1727043776396,0.0376564,2547.3,2547.2,9.22897]
[1727043776770,0.0376564,2547.3,2547.2,9.77897]
[1727043777101,0.0376564,2547.3,2547.2,11.47283542]
[1727043777250,0.0376564,2547.3,2547.2,12.17004465]
[1727043777469,0.0376564,2547.3,2547.2,14.03214]
[1727043777912,0.0376564,2547.3,2547.2,14.03685551]
[1727043779800,0.0376564,2547.3,2547.2,14.03621944]
[1727043780003,0.0376564,2548.0,2547.9,3.9248]
[1727043780221,0.0376564,2548.0,2547.9,13.09010994]
[1727043780378,0.0376564,2548.0,2547.9,13.01163424]
[1727043780901,0.0376564,2548.0,2547.9,13.70842931]
[1727043781400,0.0376564,2548.0,2547.9,13.01163424]
[1727043781604,0.0376564,2548.0,2547.9,14.78737164]
[1727043781799,0.0376564,2548.0,2547.9,15.48383202]
[1727043782175,0.0376564,2548.0,2547.9,14.78737164]
[1727043782380,0.0376564,2548.0,2547.9,16.52763156]
[1727043782917,0.0376564,2548.0,2547.9,16.52752347]
[1727043783218,0.0376564,2548.8,2548.7,7.47356]
[1727043783419,0.0376564,2548.8,2548.7,8.613286]
[1727043784127,0.0376564,2548.8,2548.7,3.55]
[1727043784336,2.2969564,2548.8,2548.7,3.0]
[1727043784498,2.4508422,2548.8,2548.7,3.0]